bitfinex/quotes_SOLUSD_20250706
["timestamp","ask_amount","ask_price","bid_price","bid_amount"]
[1751838369850,38.65387695,153.25,153.24,0.03]
[1751838371535,64.65387695,153.25,153.24,0.03]
[1751838371730,60.07057136,153.25,153.24,0.03]
[1751838371936,64.65387695,153.25,153.24,0.03]
[1751838372138,38.65387695,153.25,153.24,0.03]
[1751838373626,57.45387695,153.25,153.24,0.03]
[1751838375159,57.44245469,153.25,153.24,0.03]
[1751838381441,25.96326362,153.25,153.24,0.03]
[1751838381648,30.54656921,153.25,153.24,0.03]
[1751838382355,37.07185469,153.25,153.24,0.03]
[1751838383435,37.07185469,153.25,153.21,0.03]
[1751838383436,26.0,153.22,153.21,0.03]
[1751838383756,49.23295445,153.22,153.21,0.03]
[1751838385054,81.80969198,153.22,153.21,0.03]
[1751838386158,63.06969198,153.22,153.21,0.03]
[1751838387058,65.65764878,153.22,153.21,0.03]
[1751838387268,72.82891117,153.22,153.21,0.03]
[1751838387463,26.0,153.19,153.18,0.03]
[1751838387667,7.17126239,153.19,153.18,0.03]
[1751838388284,26.0,153.17,153.11,6.53125204]
[1751838388437,7.17126239,153.15,153.11,6.53125204]
[1751838388940,26.0,153.17,153.05,54.04375376]
[1751838388941,7.17126239,153.12,153.05,54.04375376]
[1751838389159,14.34252478,153.06,153.02,1e-08]
[1751838389379,14.34252478,153.06,152.99,0.1]
[1751838389380,40.34252478,153.03,152.96,0.03]
[1751838389542,40.34252478,153.03,152.9,0.1]
[1751838389543,26.0,152.94,152.9,0.1]
[1751838389743,33.17126239,152.91,152.9,0.1]
[1751838390078,40.48837557,152.91,152.88,0.1]
[1751838390256,14.34252478,152.89,152.88,0.1]
[1751838390452,26.0,152.86,152.84,2.78433908]
[1751838390773,7.17126239,152.85,152.84,2.78433908]
[1751838390944,13.71362418,152.85,152.84,2.78433908]
[1751838391144,13.71362418,152.85,152.79,1.3556184]
[1751838391360,7.17126239,152.8,152.79,1.3556184]
[1751838391859,14.34252478,152.8,152.79,1.3556184]
[1751838392270,7.17126239,152.79,152.72,7.8178]
[1751838392470,7.17126239,152.73,152.72,7.8178]
[1751838392764,7.17126239,152.73,152.72,1.6073]
[1751838392961,7.17126239,152.73,152.67,2.39902932]
[1751838392962,13.71876451,152.73,152.67,2.39902932]
[1751838393274,7.17126239,152.68,152.67,2.39902932]
[1751838393652,32.54750212,152.73,152.67,2.39902932]
[1751838393964,7.17126239,152.68,152.67,2.39902932]
[1751838394166,48.91625743,152.73,152.67,2.39902932]
[1751838394359,7.17126239,152.73,152.67,2.39902932]
[1751838394541,26.0,152.76,152.67,2.39902932]
[1751838394869,6.54493095,152.79,152.7,10.81737674]
[1751838395059,7.17705712,152.84,152.74,10.81737674]
[1751838395263,22.89676827,152.86,152.73,6.2021]
[1751838395264,10.81737674,152.8,152.73,6.2021]
[1751838395452,10.81737674,152.8,152.73,17.01947674]
[1751838395658,31.27737674,152.82,152.73,6.2021]
[1751838395865,10.81737674,152.75,152.67,15.32036789]
[1751838396074,10.81737674,152.74,152.67,8.77042932]
[1751838396256,10.81737674,152.72,152.67,34.77042932]
[1751838396574,26.0,152.79,152.67,8.77042932]
[1751838396775,31.27737674,152.82,152.67,8.77042932]
[1751838396776,26.0,152.75,152.67,8.77042932]
[1751838396961,10.81737674,152.74,152.67,19.58780606]
[1751838397161,26.0,152.75,152.69,10.81737674]
[1751838397478,26.0,152.76,152.71,10.81737674]
[1751838397781,26.0,152.76,152.7,10.81737674]
[1751838397959,26.0,152.76,152.71,10.81737674]
[1751838398159,26.0,152.78,152.71,10.81737674]
[1751838398361,26.0,152.78,152.72,10.81737674]
[1751838398657,36.81737674,152.78,152.67,41.32043594]
[1751838398865,36.81737674,152.78,152.71,10.81737674]
[1751838399059,17.93249899,152.77,152.67,59.9700848]
[1751838399264,27.97979387,152.71,152.64,10.81737674]
[1751838399464,26.31319387,152.71,152.7,10.81737674]
[1751838399772,18.64964886,152.8,152.7,10.81737674]
[1751838399972,41.59191494,152.83,152.76,10.81737674]
[1751838400167,10.81737674,152.83,152.76,10.81737674]
[1751838400564,41.59191494,152.85,152.73,10.81737674]
[1751838400869,10.81737674,152.83,152.76,10.81737674]
[1751838401070,10.81737674,152.8,152.75,6.54662479]
[1751838401272,18.64964886,152.84,152.75,26.0]
[1751838401582,18.64964886,152.81,152.72,32.54793085]
[1751838401764,10.81737674,152.77,152.72,32.54793085]
[1751838401969,10.81737674,152.76,152.71,6.54835311]
[1751838402273,10.81737674,152.75,152.71,6.54835311]
[1751838402668,19.30474221,152.79,152.71,6.54835311]
[1751838402873,10.81737674,152.74,152.68,27.19116691]
[1751838403174,10.81737674,152.69,152.66,6.3435]
[1751838403481,10.81737674,152.68,152.63,6.55179191]
[1751838403665,10.81737674,152.69,152.63,6.55179191]
[1751838403873,18.64964886,152.7,152.63,6.55179191]
[1751838404191,18.64964886,152.7,152.65,10.81737674]
[1751838404411,10.81737674,152.71,152.61,6.55265054]
[1751838404560,18.64964886,152.71,152.66,10.81737674]
[1751838404760,29.4670256,152.71,152.61,48.9342769]
[1751838404975,23.55360569,152.64,152.63,26.0]
[1751838405174,10.81737674,152.7,152.63,10.81737674]
[1751838405369,29.4670256,152.71,152.65,10.81737674]
[1751838405567,10.81737674,152.81,152.71,18.64964886]
[1751838405774,11.47247009,152.81,152.74,10.81737674]
[1751838406165,11.47247009,152.81,152.71,26.0]
[1751838406166,0.06,152.8,152.75,10.81737674]
[1751838407084,0.06,152.8,152.72,6.54793085]
[1751838407085,0.06,152.8,152.76,10.81737674]
[1751838408300,0.06,152.8,152.74,6.54698393]
[1751838408487,0.06,152.8,152.75,10.81737674]
[1751838408670,0.06,152.8,152.74,6.54698393]
[1751838409078,0.06,152.8,152.76,10.81737674]
[1751838410078,0.06,152.8,152.74,6.54698393]
[1751838410277,0.06,152.8,152.76,10.81737674]
[1751838410478,0.06,152.8,152.76,17.36352734]
[1751838411304,0.06,152.8,152.76,6.5461506]
[1751838411688,0.06,152.8,152.76,10.81737674]
[1751838413089,0.06,152.8,152.73,32.54750212]
[1751838413301,0.06,152.8,152.75,10.81737674]
[1751838413684,0.06,152.8,152.74,6.54707345]
[1751838413887,0.06,152.8,152.76,10.81737674]
[1751838414099,0.06,152.8,152.74,6.54707345]
[1751838414302,18.64964886,152.79,152.74,6.54707345]
[1751838414504,29.4670256,152.79,152.74,6.54707345]
[1751838414909,0.06,152.8,152.72,43.36530759]
[1751838415096,10.81737674,152.79,152.73,10.81737674]
[1751838415488,0.06,152.8,152.72,32.54793085]
[1751838415489,0.06,152.8,152.75,10.81737674]
[1751838415690,0.06,152.8,152.74,10.81737674]
[1751838416084,0.06,152.8,152.73,17.36487886]
[1751838416502,18.64964886,152.78,152.73,6.54750212]
[1751838416696,29.4670256,152.78,152.73,6.54750212]
[1751838416896,18.64964886,152.76,152.7,6.54838556]
[1751838417099,29.4670256,152.74,152.69,6.57920616]
[1751838417290,29.4670256,152.74,152.69,0.03]
[1751838417291,18.64964886,152.72,152.69,0.03]
[1751838418306,10.81737674,152.74,152.69,0.03]
[1751838418490,18.64964886,152.73,152.69,0.03]
[1751838419303,18.64964886,152.75,152.69,10.84737674]
[1751838419504,29.4670256,152.75,152.69,10.84737674]
[1751838420007,18.64964886,152.75,152.7,17.36580752]
[1751838420303,0.06,152.8,152.7,22.92040196]
[1751838420505,18.64964886,152.77,152.7,22.92040196]
[1751838420704,29.4670256,152.77,152.7,17.36580752]
[1751838420911,10.81737674,152.76,152.7,6.54843078]
[1751838421213,10.81737674,152.75,152.7,6.54843078]
[1751838421620,18.64964886,152.77,152.69,6.57921736]
[1751838421787,10.81737674,152.76,152.69,17.3965941]
[1751838422609,26.0,152.76,152.69,33.76963752]
[1751838422923,36.81737674,152.76,152.69,33.76963752]
[1751838423097,36.81737674,152.76,152.69,22.95226078]
[1751838423292,10.81737674,152.75,152.69,22.95226078]
[1751838423492,26.0,152.76,152.69,22.95226078]
[1751838423696,36.81737674,152.76,152.69,33.76963752]
[1751838424305,26.0,152.76,152.7,10.81737674]
[1751838424523,18.64964886,152.76,152.71,10.81737674]
[1751838424887,18.64964886,152.76,152.69,22.95226078]
[1751838425090,18.64964886,152.76,152.7,10.81737674]
[1751838425290,26.0,152.74,152.7,10.81737674]
[1751838425486,26.0,152.74,152.71,6.54835963]
[1751838426222,26.0,152.74,152.71,17.36573637]
[1751838426415,15.4223017,152.8,152.71,17.36573637]
[1751838426416,10.81737674,152.77,152.71,17.36573637]
[1751838426626,7.13277393,152.76,152.71,17.36573637]
[1751838426792,7.13277393,152.75,152.71,6.54835963]
[1751838426997,7.13277393,152.74,152.71,6.54835963]
[1751838427201,7.13277393,152.73,152.71,6.54835963]
[1751838427422,7.13277393,152.72,152.71,17.36573637]
[1751838427633,7.13277393,152.72,152.7,6.54878847]
[1751838427800,10.81737674,152.77,152.7,6.54878847]
[1751838428001,7.14682435,152.76,152.71,10.81737674]
[1751838428195,7.14682435,152.75,152.71,0.03]
[1751838428508,7.14682435,152.74,152.71,0.03]
[1751838428695,7.14682435,152.73,152.71,0.03]
[1751838428897,8.81777926,152.76,152.71,0.03]
[1751838428898,7.14682435,152.72,152.71,0.03]
[1751838429464,18.64964886,152.76,152.71,7.10421769]
[1751838429723,18.64964886,152.76,152.73,11.81885611]
[1751838430012,26.0,152.75,152.74,7.07421769]
[1751838431195,26.0,152.76,152.74,7.07421769]
[1751838431399,44.64964886,152.76,152.75,7.07421769]
[1751838433121,55.4670256,152.76,152.75,7.07421769]
[1751838433319,55.4670256,152.76,152.75,16.02677962]
[1751838433505,44.64964886,152.76,152.75,18.8930738]
[1751838433712,55.4670256,152.76,152.75,18.8930738]
[1751838433897,44.64964886,152.76,152.75,18.8930738]
[1751838434415,44.64964886,152.76,152.75,24.75976193]
[1751838434821,10.81737674,152.77,152.75,19.13635128]
[1751838435129,10.81737674,152.77,152.76,7.07421769]
[1751838435340,0.65509335,152.79,152.76,7.07421769]
[1751838435637,0.65509335,152.79,152.77,16.12773375]
[1751838435799,0.65509335,152.79,152.78,7.07421769]
[1751838436002,7.2000243,152.79,152.78,7.07421769]
[1751838436714,25.84967316,152.79,152.78,7.07421769]
[1751838436920,36.6670499,152.79,152.78,7.07421769]
[1751838440722,26.0,152.76,152.71,15.64268362]
[1751838440927,26.0,152.76,152.72,7.25167746]
[1751838441120,26.0,152.76,152.73,7.25167746]
[1751838441434,26.0,152.76,152.74,7.25167746]
[1751838441614,33.21026965,152.76,152.75,7.25167746]
[1751838442109,26.0,152.76,152.75,7.25167746]
[1751838444610,58.40613479,152.76,152.75,7.25167746]
[1751838445536,58.40613479,152.76,152.71,0.03]
[1751838445837,7.21026965,152.72,152.71,0.03]
[1751838446206,7.21026965,152.73,152.71,0.03]
[1751838446831,26.51501186,152.72,152.71,0.03]
[1751838447037,19.30474221,152.72,152.71,0.03]
[1751838447236,33.06294271,152.72,152.69,0.03]
[1751838447448,25.85991851,152.7,152.69,0.03]
[1751838447611,51.85991851,152.7,152.69,0.03]
[1751838448109,18.64964886,152.69,152.63,7.21026965]
[1751838448325,7.21026965,152.68,152.62,7.21026965]
[1751838448531,7.21026965,152.67,152.62,7.21026965]
[1751838449356,13.75991596,152.68,152.62,7.21026965]
[1751838449720,7.21026965,152.67,152.61,13.54766965]
[1751838450438,13.75991596,152.68,152.62,7.21026965]
[1751838450811,6.54964631,152.68,152.64,7.21026965]
[1751838451239,6.54964631,152.68,152.63,7.24026965]
[1751838451440,6.54964631,152.68,152.63,0.03]
[1751838451646,6.54964631,152.68,152.65,7.21026965]
[1751838452439,6.54964631,152.68,152.63,0.03]
[1751838452633,6.54964631,152.68,152.64,7.21026965]
[1751838453442,6.54921736,152.69,152.64,7.21026965]
[1751838453646,13.75948701,152.69,152.64,7.21026965]
[1751838455129,13.75948701,152.69,152.63,7.24026965]
[1751838455440,7.21026965,152.67,152.63,0.03]
[1751838456144,19.30474221,152.66,152.63,0.03]
[1751838456326,13.76163233,152.64,152.63,0.03]
[1751838457144,6.55136268,152.64,152.63,0.03]
[1751838457531,13.76163233,152.64,152.63,0.03]
[1751838459024,6.55136268,152.64,152.63,0.03]
[1751838459439,13.76163233,152.64,152.63,0.03]
[1751838460630,6.5509335,152.65,152.63,0.03]
[1751838460935,13.76120315,152.65,152.63,0.03]
[1751838461132,6.5509335,152.65,152.63,0.03]
[1751838462221,16.39056732,152.66,152.63,0.03]
[1751838464141,9.84,152.66,152.63,0.03]
[1751838464650,9.84,152.66,152.64,7.21026965]
[1751838464861,9.84,152.66,152.63,0.03]
[1751838468458,16.39051935,152.66,152.63,0.03]
[1751838468758,9.84,152.66,152.63,0.03]
[1751838469461,9.84,152.66,152.56,27.43450363]
[1751838469644,9.84,152.66,152.62,7.21026965]
[1751838471367,9.84,152.66,152.62,13.76248538]
[1751838471864,9.84,152.66,152.62,7.21026965]
[1751838473360,9.84,152.66,152.62,7.24026965]
[1751838473667,9.84,152.66,152.62,0.03]
[1751838473964,9.84,152.66,152.62,7.24026965]
[1751838475261,9.84,152.66,152.62,0.03]
[1751838475468,9.84,152.66,152.62,7.24026965]
[1751838475968,9.84,152.66,152.63,7.21026965]
[1751838476758,9.84,152.66,152.64,7.21026965]
[1751838477351,9.84,152.66,152.62,0.03]
[1751838477876,9.84,152.66,152.64,7.21026965]
[1751838478362,0.06,152.69,152.65,7.21026965]
[1751838478567,0.06,152.69,152.67,7.21026965]
[1751838478954,0.06,152.69,152.62,0.35726749]
[1751838478955,0.06,152.69,152.68,7.21026965]
[1751838479563,0.06,152.69,152.68,13.75991596]
[1751838480164,0.06,152.69,152.68,6.54964631]
[1751838480343,0.06,152.69,152.68,13.75991596]
[1751838481943,1e-08,152.69,152.68,13.75991596]
[1751838482370,1e-08,152.69,152.68,14.08675442]
[1751838482574,0.06,152.79,152.72,26.0]
[1751838482747,0.06,152.79,152.75,7.21026965]
[1751838483147,0.06,152.79,152.76,6.54621628]
[1751838483372,7.27026965,152.79,152.76,6.54621628]
[1751838484773,0.06,152.79,152.75,6.54664484]
[1751838484972,0.06,152.79,152.75,13.75691449]
[1751838485354,7.27026965,152.79,152.75,13.75691449]
[1751838486650,0.06,152.79,152.75,13.75691449]
[1751838487750,0.06,152.79,152.73,22.9159358]
[1751838487953,0.06,152.79,152.75,7.21026965]
[1751838489575,0.06,152.79,152.76,13.75648593]
[1751838490348,0.06,152.79,152.76,6.54621628]
[1751838490553,0.06,152.79,152.77,7.21026965]
[1751838490752,0.06,152.79,152.76,6.54621628]
[1751838491049,7.27026965,152.79,152.76,6.54621628]
[1751838492057,0.06,152.79,152.75,13.75691449]
[1751838494787,0.06,152.79,152.75,6.54664484]
[1751838495257,0.06,152.79,152.75,13.75691449]
[1751838495463,0.06,152.79,152.78,7.21026965]
[1751838495676,0.06,152.8,152.78,7.21026965]
[1751838495858,0.06,152.8,152.79,7.21026965]
[1751838497075,0.06,152.8,152.79,13.7552006]
[1751838497455,0.06,152.8,152.79,6.54493095]
[1751838497754,18.64964886,152.78,152.71,23.58019483]
[1751838497971,18.64964886,152.78,152.7,7.21026965]
[1751838497972,7.21026965,152.76,152.7,7.21026965]
[1751838498173,7.21026965,152.75,152.69,13.75948701]
[1751838498481,7.21026965,152.73,152.69,6.54921736]
[1751838498675,0.81822347,152.77,152.69,6.54921736]
[1751838498869,7.21026965,152.75,152.69,13.75948701]
[1751838499567,18.64964886,152.74,152.69,6.54921736]
[1751838499875,25.85991851,152.74,152.69,6.54921736]
[1751838500769,25.85991851,152.74,152.68,16.40368755]
[1751838500973,25.85991851,152.74,152.68,7.24026965]
[1751838501382,1.732,152.71,152.68,0.03]
[1751838501554,8.94226965,152.71,152.68,0.03]
[1751838502181,18.64964886,152.7,152.68,0.03]
[1751838502566,18.64964886,152.69,152.68,0.03]
[1751838502972,35.7608146,152.71,152.68,0.03]
[1751838503284,25.85991851,152.7,152.68,0.03]
[1751838503664,18.64964886,152.7,152.68,0.03]
[1751838503984,25.85991851,152.7,152.68,0.03]
[1751838504870,8.02892182,152.69,152.68,0.03]
[1751838507875,14.57813918,152.69,152.68,0.03]
[1751838508183,18.64964886,152.66,152.64,6.55136268]
[1751838509294,18.64964886,152.66,152.62,13.79249085]
[1751838509588,18.64964886,152.66,152.62,6.5822212]
[1751838509764,25.85991851,152.66,152.62,6.5822212]
[1751838509966,18.64964886,152.66,152.62,6.5822212]
[1751838510780,25.85991851,152.66,152.62,6.5822212]
[1751838511180,25.85991851,152.66,152.62,0.03]
[1751838511792,18.64964886,152.66,152.62,0.03]
[1751838512264,25.85991851,152.66,152.62,6.5822212]
[1751838512470,18.64964886,152.64,152.62,0.03]
[1751838512672,1.7661,152.63,152.62,0.03]
[1751838514490,8.97636965,152.63,152.62,0.03]
[1751838514991,1.7661,152.63,152.62,0.03]
[1751838515373,8.97636965,152.63,152.62,0.03]
[1751838515575,20.41574886,152.63,152.62,0.03]
[1751838515887,18.64964886,152.62,152.56,6.55479811]
[1751838516191,19.46867651,152.62,152.56,6.55479811]
[1751838516394,19.46867651,152.62,152.55,6.65511331]
[1751838516395,25.85991851,152.59,152.55,6.65511331]
[1751838517283,18.64964886,152.59,152.55,6.65511331]
[1751838517470,25.85991851,152.59,152.55,6.65511331]
[1751838517673,25.85991851,152.59,152.56,0.03]
[1751838519075,18.64964886,152.59,152.56,0.03]
[1751838519276,25.85991851,152.59,152.56,0.03]
[1751838519488,18.64964886,152.59,152.56,0.03]
[1751838519698,25.85991851,152.59,152.56,0.03]
[1751838522983,18.64964886,152.59,152.56,0.03]
[1751838523402,25.85991851,152.59,152.56,0.03]
[1751838524088,18.64964886,152.59,152.56,0.03]
[1751838524305,7.21026965,152.58,152.56,0.03]
[1751838525316,18.64964886,152.59,152.56,0.03]
[1751838525495,25.85991851,152.59,152.56,0.03]
[1751838525687,7.21026965,152.58,152.56,0.03]
[1751838526395,18.64964886,152.59,152.56,0.03]
[1751838526596,7.21026965,152.58,152.56,0.03]
[1751838527288,18.64964886,152.59,152.56,0.03]
[1751838527489,7.21026965,152.58,152.56,0.03]
[1751838527887,7.21026965,152.57,152.56,0.03]
[1751838529010,18.64964886,152.59,152.56,0.03]
[1751838529212,7.21026965,152.57,152.56,0.03]
[1751838531320,7.21026965,152.58,152.56,0.03]
[1751838533616,7.21026965,152.57,152.56,0.03]
[1751838535316,27.52521851,152.57,152.56,0.03]
[1751838535493,34.07958699,152.57,152.56,0.03]
[1751838536292,34.89888305,152.57,152.56,0.03]
[1751838538012,20.43024886,152.53,152.52,0.1]
[1751838538192,28.46002942,152.53,152.52,0.1]
[1751838539219,44.64964886,152.51,152.5,2.39902932]
[1751838539417,61.87953689,152.51,152.5,2.39902932]
[1751838539996,68.43648397,152.51,152.5,2.39902932]
[1751838540317,61.22621432,152.51,152.5,2.39902932]
[1751838540515,75.16788397,152.51,152.5,2.39902932]
[1751838541109,67.95761432,152.51,152.5,2.39902932]
[1751838541319,75.16788397,152.51,152.5,2.39902932]
[1751838542532,67.95761432,152.51,152.5,2.39902932]
[1751838542699,75.16788397,152.51,152.5,2.39902932]
[1751838543022,67.95761432,152.51,152.5,2.39902932]
[1751838543329,75.16788397,152.51,152.5,2.39902932]
[1751838543815,61.40066724,152.51,152.5,2.39902932]
[1751838544123,52.67953689,152.51,152.5,2.39902932]
[1751838544725,45.46926724,152.51,152.5,2.39902932]
[1751838544899,52.67953689,152.51,152.5,2.39902932]
[1751838545300,19.46926724,152.51,152.5,2.39902932]
[1751838545513,9.81038056,152.53,152.5,2.39902932]
[1751838545802,25.85991851,152.52,152.5,2.39902932]
[1751838547213,26.67953689,152.51,152.5,2.39902932]
[1751838547415,33.23648397,152.51,152.5,2.39902932]
[1751838548826,52.67953689,152.51,152.5,2.39902932]
[1751838550214,51.85991851,152.51,152.5,2.39902932]
[1751838550523,25.85991851,152.54,152.5,8.95636149]
[1751838550703,7.21026965,152.53,152.5,8.95636149]
[1751838550899,44.64964886,152.54,152.5,8.95636149]
[1751838550900,18.64964886,152.54,152.5,8.95636149]
[1751838551121,18.64964886,152.54,152.5,16.16663114]
[1751838552008,7.21026965,152.55,152.5,16.16663114]
[1751838552509,7.21026965,152.55,152.5,8.95636149]
[1751838552825,7.21026965,152.55,152.5,16.16663114]
[1751838554111,25.85991851,152.51,152.5,2.39902932]
[1751838556324,32.41686559,152.51,152.5,2.39902932]
[1751838557057,25.85991851,152.51,152.5,2.39902932]
[1751838558927,25.85991851,152.51,152.5,2.39902932]
[1751838560826,32.41686559,152.51,152.5,2.39902932]
[1751838561534,25.85991851,152.51,152.5,2.42902932]
[1751838562842,18.64964886,152.51,152.5,2.42902932]
[1751838563437,25.85991851,152.51,152.5,2.42902932]
[1751838563942,8.08983429,152.52,152.5,2.42902932]
[1751838564245,25.91991851,152.52,152.5,2.42902932]
[1751838564439,18.70964886,152.52,152.5,2.42902932]
[1751838565247,18.70964886,152.52,152.5,8.98635676]
[1751838565455,0.06,152.52,152.5,16.19662641]
[1751838567550,0.06,152.52,152.51,7.21026965]
[1751838567929,1e-08,152.52,152.51,7.21026965]
[1751838569035,1e-08,152.52,152.51,13.76721673]
[1751838570440,1e-08,152.52,152.51,22.81407794]
[1751838571266,153.27026965,152.62,152.51,71.99118107]
[1751838571455,0.06,152.62,152.59,7.21026965]
[1751838572091,0.06,152.62,152.6,7.21026965]
[1751838573147,0.06,152.62,152.61,6.55265054]
[1751838574055,0.06,152.62,152.61,13.76292019]
[1751838574250,1e-08,152.62,152.61,13.76292019]
[1751838574452,1e-08,152.62,152.61,6.55265054]
[1751838574770,1e-08,152.62,152.61,13.76292019]
[1751838574929,0.2,152.68,152.61,13.76292019]
[1751838574930,0.2,152.68,152.64,26.0]
[1751838575130,0.2,152.68,152.67,7.21026965]
[1751838575438,0.2,152.68,152.67,6.55007532]
[1751838575957,0.2,152.68,152.67,13.76034497]
[1751838576965,0.2,152.68,152.67,6.55007532]
[1751838577136,0.2,152.68,152.67,13.76034497]
[1751838577966,0.2,152.68,152.67,6.55007532]
[1751838578264,0.2,152.68,152.67,13.76034497]
[1751838585939,1e-08,152.68,152.67,13.76034497]
[1751838586754,1e-08,152.68,152.67,39.76034497]
[1751838588062,0.2,152.78,152.7,26.0]
[1751838588369,0.2,152.78,152.75,7.21026965]
[1751838590070,0.2,152.78,152.76,6.54621628]
[1751838593272,0.2,152.78,152.76,13.75648593]
[1751838594386,0.2,152.78,152.77,7.21026965]
[1751838596488,0.2,152.78,152.77,13.75605743]
[1751838598768,1e-08,152.78,152.77,13.75605743]
[1751838600280,1e-08,152.78,152.77,6.54578778]
[1751838600480,1e-08,152.78,152.75,13.75691449]
[1751838600655,1e-08,152.78,152.75,6.54664484]
[1751838600861,8.98306966,152.78,152.72,13.7582005]
[1751838601071,8.98306966,152.78,152.72,6.54793085]
[1751838601072,7.21026965,152.76,152.72,6.54793085]
[1751838601256,25.85991851,152.75,152.68,16.37331675]
[1751838601476,7.21026965,152.74,152.69,7.21026965]
[1751838601665,18.64964886,152.75,152.68,7.21026965]
[1751838601861,7.21026965,152.74,152.66,6.55050438]
[1751838602063,18.64964886,152.75,152.68,7.21026965]
[1751838602383,7.21026965,152.73,152.67,7.21026965]
[1751838602760,0.81838418,152.74,152.67,7.21026965]
[1751838602761,25.85991851,152.72,152.67,7.21026965]
[1751838602965,1.7581,152.71,152.68,177.56180033]
[1751838603765,7.36506884,152.75,152.68,177.56180033]
[1751838603766,18.64964886,152.74,152.69,7.21026965]
[1751838603977,1.7581,152.75,152.71,7.21026965]
[1751838604176,1.7581,152.75,152.72,7.21026965]
[1751838604782,1.7581,152.75,152.74,6.54707345]
[1751838604990,18.64964886,152.77,152.74,6.54707345]
[1751838605290,18.64964886,152.77,152.73,13.75765197]
[1751838605691,18.64964886,152.77,152.73,6.54738232]
[1751838606781,18.64964886,152.77,152.72,7.56797297]
[1751838607174,26.21762183,152.77,152.72,7.56797297]
[1751838607378,26.21762183,152.77,152.69,14.11719033]
[1751838607379,7.56797297,152.74,152.69,14.11719033]
[1751838607582,7.56797297,152.74,152.69,6.54921736]
[1751838610058,18.64964886,152.75,152.69,6.54921736]
[1751838610258,7.56797297,152.75,152.69,14.11719033]
[1751838610480,7.56797297,152.75,152.68,177.56180033]
[1751838610481,26.21762183,152.71,152.68,177.56180033]
[1751838611800,7.56797297,152.71,152.68,177.56180033]
[1751838613987,18.64964886,152.69,152.68,177.56180033]
[1751838614194,26.21762183,152.69,152.68,177.56180033]
[1751838615274,32.76683919,152.69,152.68,177.56180033]
[1751838616066,32.76683919,152.69,152.66,0.03]
[1751838616292,7.56797297,152.68,152.66,0.03]
[1751838617484,33.58549136,152.69,152.66,0.03]
[1751838618685,7.56797297,152.68,152.66,0.03]
[1751838619478,18.64964886,152.67,152.66,0.03]
[1751838619872,20.29504886,152.67,152.66,0.03]
[1751838620091,27.86302183,152.67,152.66,0.03]
[1751838620294,53.86302183,152.67,152.55,16.38736048]
[1751838620478,7.56797297,152.63,152.57,7.56797297]
[1751838620685,18.64964886,152.62,152.57,14.12200657]
[1751838621498,20.33714886,152.62,152.57,6.5540336]
[1751838621682,27.90512183,152.62,152.56,6.55479811]
[1751838621880,26.21762183,152.6,152.55,7.56797297]
[1751838622390,18.64964886,152.6,152.55,7.56797297]
[1751838623693,18.64964886,152.61,152.53,22.94630563]
[1751838623895,18.64964886,152.61,152.57,7.56797297]
[1751838624493,20.33714886,152.62,152.58,7.56797297]
[1751838624688,1.6875,152.62,152.58,7.56797297]
[1751838624883,1.6875,152.62,152.59,7.56797297]
[1751838626194,1.6875,152.62,152.6,6.55307994]
[1751838626392,0.81886668,152.65,152.6,30.50375277]
[1751838626577,18.64964886,152.65,152.6,30.50375277]
[1751838626977,18.64964886,152.65,152.6,22.9357798]
[1751838627298,18.64964886,152.65,152.6,30.50375277]
[1751838628893,18.64964886,152.65,152.6,27.98903795]
[1751838629598,5.05325815,152.64,152.58,0.03]
[1751838630385,24.52177369,152.65,152.58,0.03]
[1751838631995,5.05325815,152.64,152.58,0.03]
[1751838634201,5.05325815,152.63,152.59,22.93728291]
[1751838634606,24.52188099,152.63,152.59,22.93728291]
[1751838636178,24.52188099,152.63,152.59,16.38377351]
[1751838636909,19.46862284,152.63,152.59,16.38377351]
[1751838637109,24.52188099,152.63,152.59,22.93728291]
[1751838638606,19.46862284,152.63,152.59,22.93728291]
[1751838638905,19.46862284,152.63,152.58,0.03]
[1751838639098,19.46862284,152.63,152.58,5.08325815]
[1751838640909,19.46862284,152.63,152.59,22.93728291]
[1751838641912,24.52188099,152.63,152.59,22.93728291]
[1751838643507,5.05325815,152.62,152.58,0.03]
[1751838645612,18.64964886,152.61,152.58,0.03]
[1751838646107,23.70290701,152.61,152.58,0.03]
[1751838647085,5.87239314,152.6,152.58,0.03]
[1751838647293,20.30064886,152.59,152.58,0.03]